bitfinex/quotes_SOLUSD_20240615
["timestamp","ask_amount","ask_price","bid_price","bid_amount"]
[1718488641809,5.62,145.42,145.37,21.7708]
[1718488646426,5.62,145.4,145.37,16.1508]
[1718488646601,5.62,145.39,145.37,16.1508]
[1718488647514,5.62,145.4,145.37,16.1508]
[1718488647898,5.62,145.39,145.37,16.1508]
[1718488648096,15.2663,145.42,145.37,16.1508]
[1718488648420,5.62,145.39,145.37,16.1508]
[1718488649431,5.62,145.4,145.37,16.1508]
[1718488650301,5.62,145.38,145.34,6.2498]
[1718488664008,5.62,145.37,145.34,6.2498]
[1718488665333,5.62,145.35,145.32,15.6896]
[1718488665540,5.62,145.34,145.32,15.6896]
[1718488666810,5.62,145.35,145.32,15.6896]
[1718488676130,5.62,145.34,145.32,15.6896]
[1718488681459,5.62,145.33,145.29,6.3057]
[1718488681643,5.62,145.31,145.27,16.5015]
[1718488686851,5.62,145.3,145.27,16.5015]
[1718488687049,5.62,145.29,145.27,16.5015]
[1718488688857,5.62,145.32,145.25,6.6603]
[1718488688858,5.62,145.28,145.25,6.6603]
[1718488689461,5.62,145.28,145.23,16.4646]
[1718488689642,5.62,145.28,145.24,20.0]
[1718488690557,0.17,145.27,145.23,16.4646]
[1718488690756,5.62,145.26,145.23,16.4646]
[1718488690939,5.62,145.26,145.2,22.0846]
[1718488691470,5.62,145.25,145.2,16.4646]
[1718488692143,5.62,145.25,145.21,20.0]
[1718488693970,5.62,145.25,145.2,16.4646]
[1718488695455,5.62,145.24,145.2,16.4646]
[1718488699282,5.62,145.24,145.19,5.62]
[1718488708175,5.62,145.24,145.17,16.4646]
[1718488708387,5.62,145.24,145.18,25.62]
[1718488708571,5.62,145.24,145.18,20.0]
[1718488708762,5.62,145.24,145.18,25.62]
[1718488709309,5.62,145.23,145.18,25.62]
[1718488710287,0.17,145.25,145.18,20.0]
[1718488710494,5.62,145.24,145.19,5.62]
[1718488714892,5.62,145.24,145.18,25.62]
[1718488716578,7.9816,145.26,145.18,25.62]
[1718488716891,5.62,145.24,145.18,25.62]
[1718488717073,5.62,145.24,145.18,20.0]
[1718488717388,5.62,145.24,145.18,25.62]
[1718488717996,5.62,145.25,145.19,5.62]
[1718488719082,5.62,145.24,145.19,5.62]
[1718488719467,5.62,145.24,145.18,25.62]
[1718488720057,5.62,145.24,145.18,20.0]
[1718488720686,5.62,145.24,145.18,25.62]
[1718488720869,5.62,145.24,145.18,20.0]
[1718488721191,5.62,145.24,145.18,25.62]
[1718488724097,5.62,145.23,145.18,25.62]
[1718488727179,5.62,145.24,145.18,25.62]
[1718488728701,5.62,145.24,145.18,20.0]
[1718488728901,5.62,145.24,145.18,25.62]
[1718488729589,5.62,145.24,145.18,20.0]
[1718488730197,5.62,145.24,145.18,25.62]
[1718488732876,5.62,145.24,145.18,20.0]
[1718488741409,5.62,145.24,145.18,25.62]
[1718488742127,5.62,145.25,145.18,25.62]
[1718488744338,116.2679,145.29,145.18,25.62]
[1718488744339,22.9201,145.29,145.2,21.3931]
[1718488744514,2.5465,145.3,145.22,5.62]
[1718488744826,5.62,145.28,145.22,5.62]
[1718488745005,5.62,145.28,145.23,5.62]
[1718488745487,17.8246,145.31,145.24,22.4052]
[1718488745694,45.88071343,145.33,145.25,5.62]
[1718488745904,5.62,145.31,145.25,5.62]
[1718488746100,5.62,145.32,145.26,5.62]
[1718488746799,5.62,145.32,145.27,1.37481045]
[1718488747718,8.1661,145.32,145.27,1.37481045]
[1718488747919,5.62,145.3,145.25,20.0]
[1718488748097,5.62,145.29,145.24,22.4052]
[1718488748292,10.7139,145.28,145.24,22.4052]
[1718488748502,5.0946,145.26,145.21,6.1845]
[1718488748815,5.62,145.26,145.21,6.1845]
[1718488749502,25.4691,145.28,145.21,6.1845]
[1718488749706,5.62,145.26,145.21,6.1845]
[1718488756533,5.62,145.26,145.21,11.8045]
[1718488757539,5.62,145.23,145.2,15.0212]
[1718488757705,5.62,145.23,145.18,5.62]
[1718488758128,5.62,145.23,145.17,11.8045]
[1718488758328,5.62,145.23,145.18,20.0]
[1718488758921,27.36479117,145.32,145.19,15.0212]
[1718488759129,2.8866,145.29,145.2,20.0]
[1718488759325,5.62,145.27,145.2,20.0]
[1718488760223,5.62,145.26,145.2,25.62]
[1718488766442,5.62,145.26,145.2,20.0]
[1718488766621,5.62,145.26,145.2,25.62]
[1718488768634,5.62,145.25,145.2,25.62]
[1718488769147,5.62,145.26,145.2,25.62]
[1718488770122,5.62,145.25,145.2,20.0]
[1718488771826,5.62,145.25,145.2,25.62]
[1718488774029,5.62,145.26,145.2,25.62]
[1718488774551,5.62,145.26,145.2,20.0]
[1718488774931,5.62,145.26,145.2,25.62]
[1718488776263,0.17,145.28,145.22,5.62]
[1718488776465,5.96,145.28,145.23,5.62]
[1718488777333,51.39658652,145.32,145.23,5.62]
[1718488777530,5.62,145.31,145.24,36.6157]
[1718488777760,5.62,145.31,145.25,5.62]
[1718488777960,5.62,145.31,145.26,5.62]
[1718488778154,5.62,145.32,145.26,5.62]
[1718488778528,8.1661,145.32,145.24,36.6157]
[1718488778728,5.62,145.31,145.25,5.62]
[1718488779753,5.62,145.31,145.26,5.62]
[1718488780861,23.0827,145.34,145.26,5.62]
[1718488781075,5.62,145.32,145.27,5.62]
[1718488781239,5.62,145.33,145.27,5.62]
[1718488781878,5.62,145.32,145.27,5.62]
[1718488782079,5.62,145.32,145.26,5.62]
[1718488783048,5.62,145.31,145.26,5.62]
[1718488783665,5.62,145.31,145.24,36.6157]
[1718488783862,5.62,145.31,145.26,5.62]
[1718488784673,5.62,145.31,145.25,5.62]
[1718488784860,5.62,145.31,145.26,20.0]
[1718488786267,5.62,145.3,145.26,20.0]
[1718488786474,5.62,145.29,145.25,20.0]
[1718488791074,5.62,145.29,145.24,16.6157]
[1718488791245,5.62,145.28,145.23,5.62]
[1718488791450,5.62,145.28,145.22,6.3757]
[1718488791451,5.62,145.28,145.22,11.9957]
[1718488791665,5.62,145.28,145.23,20.0]
[1718488793678,5.62,145.28,145.23,25.62]
[1718488798784,5.62,145.28,145.23,20.0]
[1718488800466,0.34,145.3,145.23,20.0]
[1718488801170,5.62,145.25,145.17,21.947]
[1718488801481,6.4842,145.27,145.17,21.947]
[1718488801781,12.1042,145.27,145.21,5.62]
[1718488802984,12.1042,145.27,145.17,21.947]
[1718488802985,35.0272,145.27,145.17,21.947]
[1718488803158,5.62,145.25,145.18,20.0]
[1718488803489,5.62,145.25,145.19,5.62]
[1718488803696,5.96,145.26,145.2,5.62]
[1718488805379,5.96,145.26,145.18,20.0]
[1718488805580,5.96,145.26,145.2,5.62]
[1718488810087,0.34,145.26,145.2,5.62]
[1718488810290,5.96,145.26,145.2,5.62]
[1718488810783,5.62,145.24,145.19,5.62]
[1718488811192,5.62,145.24,145.18,25.62]
[1718488811686,5.62,145.24,145.19,5.62]
[1718488812689,5.62,145.24,145.18,25.62]
[1718488813574,5.62,145.24,145.18,20.0]
[1718488813773,5.62,145.22,145.14,6.34269859]
[1718488813988,5.62,145.22,145.16,5.62]
[1718488814190,5.62,145.21,145.16,5.62]
[1718488814588,5.62,145.22,145.16,5.62]
[1718488815092,5.62,145.22,145.15,20.0]
[1718488815285,5.62,145.22,145.16,5.62]
[1718488815590,5.79,145.21,145.15,20.0]
[1718488815888,5.79,145.21,145.16,5.62]
[1718488815889,5.62,145.21,145.16,5.62]
[1718488816093,5.62,145.17,145.11,0.8598588]
[1718488816295,5.62,145.15,145.11,0.8598588]
[1718488818093,0.34,145.14,145.11,0.8598588]
[1718488818290,5.96,145.14,145.11,0.8598588]
[1718488818670,8.5092,145.14,145.11,0.8598588]
[1718488818869,0.17,145.13,145.11,0.8598588]
[1718488819289,5.96,145.14,145.11,0.8598588]
[1718488819800,38.4864,145.16,145.11,0.8598588]
[1718488819801,15.3757,145.16,145.11,0.8598588]
[1718488820096,19.2425,145.17,145.11,0.8598588]
[1718488820303,5.62,145.15,145.11,0.8598588]
[1718488820899,5.62,145.14,145.11,0.8598588]
[1718488821103,5.62,145.13,145.11,0.8598588]
[1718488821471,0.17,145.12,145.11,0.8598588]
[1718488821673,0.51,145.12,145.11,0.8598588]
[1718488821873,6.13,145.12,145.11,0.8598588]
[1718488824086,8.8496,145.12,145.11,0.8598588]
[1718488824300,31.796,145.12,145.11,0.8598588]
[1718488824501,13.9488,145.12,145.11,0.8598588]
[1718488825185,8.8496,145.12,145.11,0.8598588]
[1718488825770,13.9488,145.12,145.11,0.8598588]
[1718488826078,8.8496,145.12,145.11,0.8598588]
[1718488826279,53.6709,145.12,144.99,115.8678]
[1718488826487,5.62,145.1,145.04,5.62]
[1718488826696,0.34,145.09,145.04,5.62]
[1718488827079,5.96,145.09,145.03,5.62]
[1718488829072,5.96,145.09,145.04,5.62]
[1718488829273,5.96,145.09,144.99,115.8678]
[1718488829604,5.96,145.09,145.04,5.62]
[1718488830917,21.8743,145.12,145.0,20.0]
[1718488831082,21.8743,145.12,145.07,5.62]
[1718488832100,21.8743,145.12,145.01,0.51]
[1718488832101,27.4943,145.12,145.06,5.62]
[1718488832882,5.79,145.11,145.01,0.51]
[1718488833085,2.8899,145.11,145.0,27.76775288]
[1718488833294,5.62,145.09,145.03,5.62]
[1718488833502,5.62,145.09,145.04,20.0]
[1718488834606,5.62,145.09,144.99,115.8678]
[1718488834818,5.62,145.09,145.03,5.62]
[1718488836028,5.62,145.09,144.99,115.8678]
[1718488836325,5.62,145.09,145.03,5.62]
[1718488836884,5.62,145.06,144.99,15.8678]
[1718488837092,5.62,145.06,145.0,20.0]
[1718488837291,5.62,145.06,145.0,25.62]
[1718488837989,5.62,145.06,145.01,5.62]
[1718488839096,5.62,145.06,145.0,5.62]
[1718488843013,5.62,145.05,144.95,30.12275938]
[1718488843202,5.62,145.05,144.99,5.62]
[1718488843391,5.62,145.05,144.96,20.8598588]
[1718488843392,5.62,145.05,145.0,20.0]
[1718488843818,5.62,145.04,145.0,20.0]
[1718488844600,5.62,145.03,144.96,0.8598588]
[1718488844803,5.62,145.03,144.97,5.62]
[1718488845003,5.62,145.03,144.98,20.0]
[1718488846896,5.62,145.03,144.97,5.62]
[1718488847130,5.62,145.03,144.98,20.0]
[1718488848152,5.62,145.03,144.97,5.62]
[1718488848311,5.62,145.03,144.98,20.0]
[1718488848927,5.62,145.03,144.97,5.62]
[1718488849454,5.79,145.01,144.96,0.8598588]
[1718488849637,5.79,145.01,144.96,6.4798588]
[1718488849843,5.79,145.01,144.97,20.0]
[1718488850549,5.79,145.01,144.96,20.8598588]
[1718488851635,22.7522,145.02,144.96,26.4798588]
[1718488851856,28.2022,145.02,144.97,5.62]
[1718488852011,22.5822,145.02,144.97,5.62]
[1718488852211,22.5822,145.02,144.98,5.62]
[1718488853751,22.5822,145.02,144.97,5.62]
[1718488858036,28.2022,145.02,144.97,5.62]
[1718488858546,28.2022,145.02,144.96,20.8598588]
[1718488858840,28.2022,145.02,144.97,5.62]
[1718488860246,28.2022,145.02,144.96,6.4798588]
[1718488860438,28.2022,145.02,144.97,20.0]
[1718488862453,28.2022,145.02,144.96,6.4798588]
[1718488862747,5.62,145.01,144.96,6.4798588]
[1718488863342,28.2022,145.02,144.96,6.4798588]
[1718488863548,22.5822,145.02,144.97,25.62]
[1718488863714,22.5822,145.02,144.97,5.62]
[1718488866320,28.2022,145.02,144.96,0.8598588]
[1718488866519,28.2022,145.02,144.96,6.4798588]
[1718488867233,28.2022,145.02,144.96,0.8598588]
[1718488867234,5.62,145.01,144.96,0.8598588]
[1718488867448,5.62,145.01,144.96,20.8598588]
[1718488868138,28.2022,145.02,144.96,26.4798588]
[1718488869321,22.5822,145.02,144.96,26.4798588]
[1718488869525,28.2022,145.02,144.96,26.4798588]
[1718488870745,28.2022,145.02,144.97,5.62]
[1718488871131,22.5822,145.02,144.97,5.62]
[1718488872354,29.78022851,145.06,144.98,5.62]
[1718488872542,22.6316,145.06,144.99,5.62]
[1718488872875,5.62,145.05,144.99,5.62]
[1718488874035,5.62,145.04,144.99,5.62]
[1718488875760,22.6316,145.06,144.99,5.62]
[1718488875937,5.62,145.04,144.99,5.62]
[1718488876332,5.62,145.04,144.96,20.8598588]
[1718488876333,22.6316,145.06,145.0,5.62]
[1718488876539,28.2516,145.06,145.01,5.62]
[1718488876847,28.2516,145.06,145.0,5.62]
[1718488877254,5.62,145.05,145.0,5.62]
[1718488880154,28.2516,145.06,145.0,5.62]
[1718488880675,22.6316,145.06,145.0,5.62]
[1718488880979,16.0328,145.06,145.02,5.62]
[1718488905682,24.2034,145.06,145.01,20.0]
[1718488906098,5.62,145.05,145.01,20.0]
[1718488906399,12.1087,145.05,144.99,5.62]
[1718488906584,12.1087,145.05,145.0,20.0]
[1718488906892,14.6595,145.05,145.0,20.0]
[1718488907074,14.6595,145.05,144.99,5.62]
[1718488907075,12.1087,145.05,144.99,5.62]
[1718488907275,12.1087,145.05,145.0,20.0]
[1718488911824,12.1087,145.05,145.0,25.62]
[1718488912101,6.4887,145.05,145.01,5.62]
[1718488920414,16.0328,145.06,145.0,20.0]
[1718488920722,16.0328,145.06,145.02,5.62]
[1718488927711,17.8504,145.1,144.98,20.0]
[1718488927712,15.1526,145.1,145.05,5.62]
[1718488927927,15.1526,145.1,145.06,5.62]
[1718488933731,6.1643,145.12,145.08,5.62]
[1718488933908,6.1643,145.12,145.09,5.62]
[1718488935808,6.1643,145.12,145.08,5.62]
[1718488936123,11.7843,145.12,145.07,5.62]
[1718488936306,11.7843,145.12,145.08,20.0]
[1718488936510,6.1643,145.12,145.08,20.0]
[1718488936721,6.1643,145.12,145.08,25.62]
[1718488936918,6.1643,145.12,145.09,5.62]
[1718488939619,6.1643,145.12,145.08,20.0]
[1718488939918,6.1643,145.12,145.09,5.62]
[1718488943746,22.283,145.15,145.09,5.62]
[1718488944444,24.832,145.15,145.09,5.62]
[1718488944652,22.283,145.15,145.09,5.62]
[1718488945451,24.832,145.15,145.09,5.62]
[1718488948754,22.283,145.15,145.09,5.62]
[1718488950330,16.663,145.15,145.1,5.62]
[1718488950532,16.663,145.15,145.12,5.62]
[1718488950723,6.0808,145.16,145.13,5.62]
[1718488951050,24.0086,145.19,145.14,5.62]
[1718488951051,21.4601,145.19,145.14,5.62]
[1718488951556,24.0084,145.19,145.14,5.62]
[1718488952047,21.4601,145.19,145.14,5.62]
[1718488952245,24.0084,145.19,145.14,5.62]
[1718488952443,15.8401,145.19,145.14,5.62]
[1718488952655,15.8401,145.19,145.15,5.62]
[1718488962569,15.8401,145.19,145.16,5.62]
[1718488964266,6.2731,145.2,145.16,5.62]
[1718488964466,5.62,145.22,145.16,5.62]
[1718488964764,24.0078,145.23,145.17,5.62]
[1718488964966,21.4601,145.23,145.17,5.62]
[1718488965148,15.8401,145.23,145.18,5.62]
[1718488965340,18.3877,145.23,145.18,5.62]
[1718488966267,23.483,145.23,145.18,5.62]
[1718488967150,7.6437,145.22,145.17,5.62]
[1718488967351,7.6441,145.21,145.15,5.62]
[1718488967657,13.2641,145.21,145.16,20.0]
[1718488967855,8.168,145.21,145.16,20.0]
[1718488968251,13.264,145.21,145.16,20.0]
[1718488968454,8.168,145.21,145.16,20.0]
[1718488969145,5.62,145.21,145.16,25.62]
[1718488969581,18.3602,145.21,145.16,20.0]
[1718488969875,5.62,145.2,145.14,5.62]
[1718488970180,5.62,145.2,145.15,20.0]
[1718488970864,2.5484,145.19,145.09,8.31437049]
[1718488971081,5.62,145.18,145.13,5.62]
[1718488971650,31.6992,145.2,145.13,5.62]
[1718488971866,5.62,145.18,145.13,5.62]
[1718488972552,5.62,145.19,145.13,5.62]
[1718488976871,11.8361,145.2,145.14,5.62]
[1718488977076,11.8361,145.2,145.15,5.62]
[1718488978551,6.2161,145.2,145.15,5.62]
[1718488980072,6.2161,145.2,145.12,0.17]
[1718488980279,6.2161,145.2,145.16,5.62]
[1718488982675,11.8361,145.2,145.15,5.62]
[1718488984051,6.2161,145.2,145.15,5.62]
[1718488986286,5.62,145.19,145.1,0.17]
[1718488986490,5.62,145.19,145.14,5.62]
[1718488987187,5.62,145.19,145.13,5.62]
[1718488987356,5.62,145.19,145.14,20.0]
[1718488988256,5.62,145.19,145.14,25.62]
[1718488988557,11.8361,145.2,145.14,25.62]
[1718488992497,21.5634,145.19,145.14,20.0]
[1718488992671,5.62,145.18,145.12,5.62]
[1718488994862,12.0211,145.16,145.08,8.20079183]
[1718488995063,5.62,145.15,145.09,5.62]
[1718488995604,5.62,145.15,145.1,5.62]
[1718488996171,12.0211,145.16,145.1,5.62]
[1718488997289,12.0211,145.16,145.11,5.62]
[1718488998366,6.4011,145.16,145.11,5.62]
[1718488998702,12.0211,145.16,145.11,5.62]
[1718488999610,6.4011,145.16,145.11,5.62]
[1718488999780,12.0211,145.16,145.11,5.62]
[1718489000476,12.0211,145.16,145.1,5.62]
[1718489001092,15.9434,145.14,145.07,6.45592479]
[1718489001409,21.5634,145.14,145.08,25.62]
[1718489001699,15.9434,145.14,145.09,5.62]
[1718489007901,6.4011,145.16,145.12,5.62]
[1718489015301,6.4011,145.16,145.08,20.0]
[1718489015487,14.57,145.16,145.1,5.62]
[1718489015803,12.0211,145.16,145.1,5.62]
[1718489017805,6.4011,145.16,145.1,5.62]
[1718489018014,6.4011,145.16,145.11,5.62]
[1718489020093,6.4011,145.16,145.12,5.62]
[1718489020296,15.9434,145.18,145.14,5.62]
[1718489020494,6.0044,145.2,145.16,5.62]
[1718489022300,6.0044,145.2,145.15,20.0]
[1718489022301,6.0044,145.2,145.15,25.62]
[1718489022986,6.0044,145.2,145.16,5.62]
[1718489023185,6.0044,145.2,145.17,5.62]
[1718489024301,6.0044,145.2,145.16,5.62]
[1718489025311,15.2348,145.21,145.16,5.62]
[1718489025818,15.2348,145.21,145.17,5.62]
[1718489030330,15.2348,145.21,145.18,5.62]
[1718489031814,5.62,145.23,145.18,5.62]
[1718489032018,22.5826,145.24,145.18,5.62]
[1718489032221,28.2026,145.24,145.18,5.62]
[1718489035505,22.5826,145.24,145.18,5.62]
[1718489035898,28.2026,145.24,145.18,5.62]
[1718489037727,5.62,145.23,145.18,5.62]
[1718489037922,22.5826,145.24,145.18,5.62]
[1718489038219,5.62,145.23,145.18,5.62]
[1718489040713,5.62,145.23,145.17,5.62]
[1718489042316,5.62,145.22,145.15,20.0]
[1718489042511,5.62,145.21,145.16,20.0]
[1718489042723,5.62,145.21,145.16,5.62]
[1718489042916,5.62,145.21,145.17,20.0]
[1718489044913,5.62,145.21,145.15,5.62]
[1718489045221,5.62,145.21,145.16,20.0]
[1718489045745,0.17,145.23,145.16,20.0]
[1718489045901,0.34,145.23,145.16,25.62]
[1718489046106,5.62,145.22,145.16,25.62]
[1718489047155,5.62,145.22,145.17,5.62]
[1718489048118,5.62,145.21,145.16,25.62]
[1718489050241,5.62,145.22,145.16,25.62]
[1718489050434,25.1301,145.24,145.16,25.62]
[1718489050627,5.62,145.22,145.17,5.62]
[1718489052915,30.2251,145.24,145.17,5.62]
[1718489053242,5.62,145.23,145.17,5.62]
[1718489056942,8.1676,145.23,145.17,5.62]
[1718489057126,5.62,145.22,145.17,5.62]
[1718489058123,5.62,145.23,145.17,5.62]
[1718489062744,19.1257,145.24,145.18,5.62]
[1718489063046,5.62,145.23,145.18,5.62]
[1718489064047,5.62,145.23,145.17,5.62]
[1718489064247,19.1257,145.24,145.17,5.62]
[1718489064542,5.62,145.23,145.17,5.62]
[1718489069826,5.62,145.22,145.16,20.0]
[1718489070126,5.62,145.22,145.16,5.62]
[1718489070839,2.5478,145.23,145.16,5.62]
[1718489071147,5.62,145.22,145.16,5.62]
[1718489074860,42.0539,145.24,145.14,20.0]
[1718489075153,5.62,145.22,145.16,5.62]
[1718489076026,5.62,145.22,145.14,20.0]
[1718489076224,5.62,145.22,145.16,5.62]
[1718489077155,5.62,145.22,145.14,20.0]
[1718489077353,5.62,145.22,145.16,5.62]
[1718489078258,5.62,145.21,145.15,5.62]
[1718489080283,26.1568,145.23,145.15,5.62]
[1718489080437,5.62,145.21,145.16,5.62]
[1718489080776,5.62,145.21,145.14,20.0]
[1718489080929,5.62,145.21,145.16,5.62]
[1718489081357,5.62,145.21,145.14,20.0]
[1718489081562,5.62,145.21,145.16,5.62]
[1718489082379,5.62,145.21,145.14,20.0]
[1718489082380,5.62,145.19,145.14,20.0]
[1718489084059,5.62,145.19,145.14,25.62]
[1718489084564,5.62,145.17,145.09,6.3485]
[1718489084758,5.62,145.16,145.09,6.3485]
[1718489085138,29.3456,145.17,145.08,15.0846]
[1718489085342,5.62,145.14,145.09,5.62]
[1718489087690,5.62,145.15,145.09,5.62]
[1718489089070,5.62,145.14,145.09,5.62]
[1718489089239,5.62,145.14,145.08,15.0846]
[1718489089443,5.62,145.14,145.08,20.7046]
[1718489095675,5.62,145.14,145.09,5.62]
[1718489096180,0.34,145.16,145.09,5.62]
[1718489096390,5.62,145.14,145.09,5.62]
[1718489098352,5.62,145.14,145.08,5.62]
[1718489101621,5.62,145.13,145.04,30.29365036]
[1718489101926,5.62,145.07,145.01,0.5683]
[1718489102088,6.0309,145.08,145.01,0.5683]
[1718489102272,15.7472,145.1,145.01,0.5683]
[1718489102477,13.38382456,145.12,145.01,0.5683]
[1718489102667,10.0,145.26,145.11,5.62]
[1718489102668,6.0309,145.17,145.11,5.62]
[1718489102865,5.62,145.15,145.06,100.0]
[1718489103073,5.62,145.11,145.04,15.6367]
[1718489103301,5.62,145.1,145.04,15.6367]
[1718489103540,21.7781,145.1,145.0,15.6367]
[1718489103666,2.5505,145.07,144.97,21.2567]
[1718489103868,2.5505,145.07,144.97,15.6367]
[1718489103869,5.62,145.03,144.97,15.6367]
[1718489104097,15.7472,145.14,145.03,15.6367]
[1718489104303,5.62,145.1,145.03,15.6367]
[1718489104464,100.0,145.16,145.01,0.5683]
[1718489104667,107.18192288,145.17,145.01,0.5683]
[1718489104668,5.62,145.06,145.01,0.5683]
[1718489104886,15.7472,145.12,145.01,0.5683]
[1718489105091,21.3672,145.15,145.09,5.62]
[1718489105325,26.4654,145.15,145.09,5.62]
[1718489105493,26.4654,145.15,145.03,6.0273]
[1718489105494,5.62,145.1,145.03,6.0273]
[1718489105684,5.1,145.1,145.03,5.62]
[1718489105892,5.62,145.08,145.01,0.5683]
[1718489106189,5.62,145.07,145.02,5.62]
[1718489107116,5.62,145.07,145.01,0.5683]
[1718489107314,6.0309,145.11,145.05,5.62]
[1718489107513,11.6509,145.11,145.05,5.62]
[1718489107700,33.5941,145.13,145.05,5.62]
[1718489107701,15.7472,145.13,145.05,5.62]
[1718489107887,7.18061367,145.16,145.1,5.62]
[1718489108091,15.7472,145.17,145.04,15.6367]
[1718489108308,5.62,145.1,145.04,15.6367]
[1718489108616,5.62,145.1,145.04,5.62]
[1718489109339,2.7203,145.08,145.0,15.6367]
[1718489109491,16.3097,145.1,144.98,6.122]
[1718489109492,0.17,145.09,144.98,6.122]
[1718489109687,2.5499,145.11,144.98,6.122]
[1718489109688,5.62,145.11,144.98,6.122]
[1718489110022,6.0309,145.12,144.99,16.5335]
[1718489110323,5.62,145.05,144.99,16.5335]
[1718489110846,5.62,145.05,144.98,6.122]
[1718489110847,8.1711,145.04,144.98,5.62]
[1718489111114,5.62,145.03,144.94,16.5335]
[1718489111334,5.62,145.02,144.94,16.5335]
[1718489111524,6.6065,145.06,144.94,16.5335]
[1718489111525,16.3097,145.09,144.95,100.0]
[1718489111726,0.51,145.08,145.02,5.62]
[1718489111888,22.5762,145.09,145.02,5.62]
[1718489112090,5.62,145.11,145.05,5.62]
[1718489112293,5.62,145.07,145.0,22.6555]
[1718489112519,8.1704,145.07,145.01,6.1883]
[1718489112726,5.62,145.07,145.01,6.1883]
[1718489113029,22.4062,145.13,145.04,5.62]
[1718489113624,5.62,145.07,145.01,6.1883]
[1718489114337,5.62,145.05,145.01,0.5683]
[1718489114635,7.17862554,145.09,145.01,0.5683]
[1718489114828,7.17862554,145.09,145.04,5.62]
[1718489114829,5.62,145.09,145.04,5.62]
[1718489115032,101.59416502,145.17,145.01,0.5683]
[1718489115033,5.62,145.07,145.02,5.62]
[1718489115240,5.62,145.06,145.01,6.1883]
[1718489116043,5.62,145.06,145.01,0.5683]
[1718489116249,5.62,145.04,145.01,0.5683]
[1718489116405,5.62,145.03,145.01,0.5683]
[1718489116953,8.5113,145.02,145.01,0.5683]
[1718489117134,8.6813,145.02,145.01,0.5683]
[1718489117598,6.13,145.02,145.01,0.5683]
[1718489118046,13.784,145.02,145.01,0.5683]
[1718489118202,21.6081,145.02,145.01,0.5683]
[1718489118628,13.954,145.02,145.01,0.5683]
[1718489118834,8.334,145.02,145.01,0.5683]
[1718489119932,3.2313,145.02,145.01,0.5683]